bitfinex/quotes_SOLUSD_20220212
["timestamp","ask_amount","ask_price","bid_price","bid_amount"]
[1644682013125,5.24,95.449,95.362,2.62390296]
[1644682013302,5.24,95.456,95.363,5.24]
[1644682013501,5.24,95.449,95.362,2.62390296]
[1644682013702,5.24,95.455,95.364,2.62390296]
[1644682013904,106.0,95.456,95.364,2.62390296]
[1644682013905,5.24,95.448,95.364,2.62390296]
[1644682014103,5.24,95.455,95.364,2.62390296]
[1644682014305,15.7304,95.45,95.364,2.62390296]
[1644682014505,5.24,95.449,95.364,2.62390296]
[1644682015205,5.24,95.456,95.364,2.62390296]
[1644682015409,23.153,95.457,95.37,15.7273]
[1644682015606,23.153,95.457,95.371,5.24]
[1644682015805,23.153,95.457,95.371,7.86390296]
[1644682016006,23.153,95.457,95.372,2.62390296]
[1644682016206,5.24,95.456,95.372,2.62390296]
[1644682016406,23.153,95.457,95.373,5.24]
[1644682016606,5.24,95.456,95.372,2.62390296]
[1644682016806,5.24,95.456,95.374,2.62390296]
[1644682017306,5.24,95.456,95.363,0.25]
[1644682017509,23.153,95.457,95.363,0.25]
[1644682017706,23.153,95.457,95.364,18.74269252]
[1644682018206,23.153,95.457,95.363,17.70482148]
[1644682018207,23.153,95.457,95.37,15.7275]
[1644682018606,46.70859987,95.456,95.371,2.62390296]
[1644682018807,5.24,95.456,95.371,2.62390296]
[1644682019208,23.153,95.457,95.38,15.726]
[1644682019610,23.8005,95.475,95.39,12.65]
[1644682019611,6.33606444,95.474,95.39,12.65]
[1644682019809,5.24,95.471,95.4,12.65]
[1644682020110,45.63532775,95.494,95.4,12.65]
[1644682020308,45.63532775,95.494,95.401,21.08983555]
[1644682020508,5.238,95.493,95.41,15.7194]
[1644682020709,11.57303324,95.493,95.4,16.11878956]
[1644682021109,4.45303624,95.489,95.39,12.65]
[1644682021311,5.238,95.488,95.4,2.62390296]
[1644682021609,4.45303624,95.489,95.41,28.3711]
[1644682022010,4.45303624,95.489,95.411,2.62390296]
[1644682022209,45.63532775,95.494,95.412,5.238]
[1644682022409,5.238,95.493,95.411,2.62390296]
[1644682022810,5.238,95.493,95.42,15.7184]
[1644682023009,5.238,95.493,95.41,12.65]
[1644682023217,4.45303624,95.493,95.41,12.65]
[1644682023411,4.45303624,95.493,95.411,2.62390296]
[1644682023710,4.45303624,95.493,95.411,7.86190296]
[1644682023911,10.78896128,95.493,95.411,7.86190296]
[1644682024213,4.45303624,95.493,95.42,15.7192]
[1644682024510,5.237,95.492,95.421,2.62390296]
[1644682024712,45.63532775,95.494,95.421,2.62390296]
[1644682024911,5.237,95.493,95.421,2.62390296]
[1644682025112,45.63532775,95.494,95.421,2.62390296]
[1644682025510,45.63532775,95.494,95.421,7.86090296]
[1644682025910,45.63532775,95.494,95.421,5.237]
[1644682026111,11.5730397,95.493,95.363,5.237]
[1644682026312,14.19694266,95.493,95.352,5.238]
[1644682026510,106.0,95.492,95.361,5.239]
[1644682026709,106.0,95.492,95.34,12.65]
[1644682026710,5.239,95.491,95.34,12.65]
[1644682026909,15.7296,95.46,95.36,51.85008512]
[1644682027113,51.4244,95.459,95.36,51.85008512]
[1644682027313,51.4244,95.459,95.361,0.25]
[1644682027614,51.4244,95.459,95.36,51.85008512]
[1644682028211,51.4244,95.459,95.36,54.47398808]
[1644682028712,51.4244,95.459,95.36,51.85008512]
[1644682028913,51.4244,95.459,95.361,2.87390296]
[1644682029115,5.24,95.459,95.37,28.3774]
[1644682029313,4.45303624,95.466,95.37,28.3774]
[1644682029515,73.8757,95.49,95.371,111.24]
[1644682029715,73.8757,95.49,95.371,129.98269252]
[1644682029913,115.39194234,95.49,95.372,18.74269252]
[1644682030116,115.39194234,95.49,95.373,5.239]
[1644682030313,73.8757,95.49,95.4,15.721]
[1644682030519,73.8757,95.49,95.41,12.65]
[1644682030913,5.238,95.497,95.41,12.65]
[1644682031113,4.45303624,95.498,95.411,7.86190296]
[1644682031518,45.13127786,95.498,95.412,2.62390296]
[1644682031714,40.67824162,95.498,95.413,5.238]
[1644682031924,5.238,95.497,95.412,2.62390296]
[1644682032119,40.67824162,95.498,95.414,2.62390296]
[1644682032322,4.45303624,95.503,95.414,2.62390296]
[1644682032523,5.238,95.497,95.414,2.62390296]
[1644682032723,4.45303624,95.503,95.414,2.62390296]
[1644682032724,4.45303624,95.503,95.42,15.7198]
[1644682032922,4.45303624,95.52,95.43,12.65]
[1644682033328,37.59503747,95.518,95.43,12.65]
[1644682033526,5.237,95.517,95.43,12.65]
[1644682033926,4.45303624,95.513,95.43,12.65]
[1644682034126,5.237,95.512,95.43,12.65]
[1644682034727,5.237,95.512,95.43,28.3675]
[1644682035127,5.237,95.512,95.431,2.62390296]
[1644682035331,37.59503747,95.518,95.431,2.62390296]
[1644682035646,37.59503747,95.518,95.432,24.09748463]
[1644682035849,37.59503747,95.518,95.45,15.7114]
[1644682036046,5.236,95.537,95.46,12.65]
[1644682036745,5.236,95.537,95.461,2.62390296]
[1644682036948,5.235,95.549,95.46,28.3607]
[1644682037145,48.92769799,95.536,95.46,12.65]
[1644682037348,5.235,95.555,95.461,2.62390296]
[1644682037947,5.235,95.555,95.47,15.7081]
[1644682038145,5.235,95.555,95.48,12.65]
[1644682038349,4.45303624,95.571,95.48,12.65]
[1644682038546,47.8029002,95.572,95.48,12.65]
[1644682038547,5.234,95.554,95.48,12.65]
[1644682038745,5.234,95.571,95.481,2.62390296]
[1644682038947,43.1542841,95.552,95.481,2.62390296]
[1644682039152,43.1542841,95.552,95.48,12.65]
[1644682039350,5.234,95.551,95.452,24.064]
[1644682040246,5.234,95.551,95.45,12.65]
[1644682040849,5.234,95.551,95.451,2.62390296]
[1644682041049,5.234,95.551,95.452,5.235]
[1644682041248,5.234,95.551,95.453,0.25]
[1644682041451,5.234,95.551,95.453,2.87390296]
[1644682041749,5.234,95.551,95.454,2.62390296]
[1644682042148,5.234,95.551,95.45,12.65]
[1644682042149,15.714,95.55,95.45,12.65]
[1644682042350,5.235,95.549,95.45,12.65]
[1644682042554,2.62390296,95.549,95.45,12.65]
[1644682042750,5.235,95.548,95.45,12.65]
[1644682043551,5.235,95.549,95.451,2.62390296]
[1644682044351,2.62390296,95.548,95.434,2.62390296]
[1644682044551,15.7156,95.54,95.432,23.2256]
[1644682044752,5.236,95.539,95.432,23.2256]
[1644682045154,15.7156,95.54,95.433,7.85990296]
[1644682045351,4.45303624,95.553,95.433,7.85990296]
[1644682045554,5.236,95.559,95.44,15.7118]
[1644682045753,5.235,95.549,95.45,12.65]
[1644682046153,14.665,95.549,95.45,12.65]
[1644682046354,14.665,95.549,95.451,2.62390296]
[1644682046653,15.7154,95.54,95.438,2.62390296]
[1644682046853,5.236,95.539,95.438,2.62390296]
[1644682047053,34.78922123,95.537,95.451,2.62390296]
[1644682047258,40.02422123,95.537,95.451,2.62390296]
[1644682047654,34.78922123,95.537,95.451,2.62390296]
[1644682047853,42.27922123,95.537,95.451,2.62390296]
[1644682048057,148.27922123,95.537,95.451,2.62390296]
[1644682048555,42.27922123,95.537,95.451,108.62390296]
[1644682048755,42.27922123,95.537,95.46,15.7089]
[1644682048956,4.45303624,95.568,95.47,12.65]
[1644682049155,5.235,95.548,95.47,12.65]
[1644682049366,31.27935293,95.567,95.471,2.62390296]
[1644682049760,1.65965293,95.566,95.471,2.62390296]
[1644682049957,34.3498346,95.565,95.471,37.02677159]
[1644682050159,34.3498346,95.565,95.472,106.0]
[1644682050359,5.234,95.564,95.472,108.62390296]
[1644682050562,5.234,95.564,95.473,2.62390296]
[1644682050961,1.47557439,95.524,95.473,2.62390296]
[1644682051162,1.47557439,95.526,95.474,106.0]
[1644682051362,1.47557439,95.53,95.475,5.235]
[1644682051663,6.06439994,95.53,95.475,43.20066048]
[1644682051862,1.47557439,95.528,95.476,18.74269252]
[1644682052163,1.47557439,95.526,95.48,12.65]
[1644682052361,1.47557439,95.522,95.48,12.65]
[1644682052565,1.47557439,95.522,95.481,2.62390296]
[1644682052761,1.47557439,95.535,95.481,2.62390296]
[1644682052962,1.47557439,95.537,95.481,22.71353759]
[1644682053166,1.47557439,95.529,95.482,34.31775644]
[1644682053363,1.47557439,95.529,95.482,2.62390296]
[1644682053564,1.47557439,95.528,95.483,2.62390296]
[1644682053862,1.47557439,95.525,95.483,2.62390296]
[1644682054065,1.47557439,95.524,95.483,2.62390296]
[1644682054264,1.47557439,95.523,95.483,2.62390296]
[1644682054465,1.47557439,95.529,95.483,2.62390296]
[1644682054666,1.47472175,95.534,95.483,2.62390296]
[1644682054867,5.234,95.589,95.485,53.0]
[1644682055070,4.45303624,95.6,95.486,106.0]
[1644682055269,5.232,95.599,95.5,170.83]
[1644682055469,5.232,95.618,95.501,111.232]
[1644682055771,4.33220624,95.641,95.511,106.0]
[1644682055968,5.231,95.64,95.52,12.65]
[1644682056271,5.231,95.64,95.53,158.18]
[1644682056469,5.231,95.64,95.551,32.70193449]
[1644682056677,5.23,95.663,95.561,106.0]
[1644682056869,5.23,95.663,95.562,5.229]
[1644682057068,11.47875534,95.693,95.562,26.11307907]
[1644682057271,5.229,95.663,95.563,11.2309444]
[1644682057568,5.229,95.663,95.564,5.229]
[1644682057772,5.229,95.663,95.57,15.6903]
[1644682057970,5.229,95.663,95.58,12.65]
[1644682058373,5.228,95.708,95.58,12.65]
[1644682058570,5.228,95.708,95.581,2.62390296]
[1644682058770,36.32740842,95.662,95.581,2.62390296]
[1644682058972,5.228,95.661,95.58,12.65]
[1644682059177,5.228,95.661,95.564,5.229]
[1644682059178,9.56126412,95.661,95.564,5.229]
[1644682059371,9.56126412,95.661,95.543,2.62390296]
[1644682059372,0.48,95.652,95.543,2.62390296]
[1644682059573,0.48,95.642,95.5,12.65]
[1644682059973,2.62390296,95.651,95.5,12.65]
[1644682059974,15.7061,95.6,95.501,2.89670072]
[1644682060173,43.39287933,95.605,95.501,8.12770072]
[1644682060572,43.39287933,95.605,95.502,20.88407907]
[1644682060771,5.232,95.628,95.503,5.232]
[1644682060974,24.98,95.629,95.51,158.18]
[1644682061179,24.98,95.629,95.54,15.695]
[1644682061374,5.23,95.628,95.55,12.65]
[1644682061573,5.23,95.658,95.55,12.65]
[1644682061781,5.23,95.627,95.551,32.27801656]
[1644682061978,30.1356,95.658,95.551,34.90191952]
[1644682062178,24.9066,95.658,95.552,7.85290296]
[1644682062377,5.229,95.657,95.552,7.85290296]
[1644682062578,5.229,95.657,95.553,2.62390296]
[1644682062579,3.16356601,95.656,95.553,2.62390296]
[1644682062777,5.229,95.655,95.553,2.62390296]
[1644682062978,24.9066,95.658,95.554,26.11307907]
[1644682063279,30.1356,95.658,95.555,2.62390296]
[1644682063480,5.229,95.657,95.57,12.65]
[1644682063677,5.229,95.658,95.57,28.3406]
[1644682063877,2.93296092,95.676,95.571,7.85290296]
[1644682064080,2.93296092,95.676,95.572,3.22348149]
[1644682064279,2.93296092,95.688,95.574,60.0]
[1644682064478,3.15722029,95.705,95.59,158.18]
[1644682064678,8.38522029,95.705,95.61,158.18]
[1644682064879,2.93296092,95.727,95.62,12.65]
[1644682065079,5.227,95.704,95.63,12.65]
[1644682065279,37.28053289,95.703,95.64,12.65]
[1644682065480,42.50653289,95.703,95.65,12.65]
[1644682065689,5.226,95.725,95.651,10.37877961]
[1644682065883,3.15698885,95.724,95.651,10.37877961]
[1644682066084,2.93296092,95.731,95.651,13.00268257]
[1644682066284,5.224,95.73,95.652,2.62390296]
[1644682066482,5.224,95.737,95.652,2.62390296]
[1644682066682,0.56912739,95.74,95.652,2.62390296]
[1644682066683,37.62007675,95.736,95.652,2.62390296]
[1644682066885,5.224,95.735,95.652,2.62390296]
[1644682067186,3.1564879,95.734,95.652,2.62390296]
[1644682067386,8.15696092,95.733,95.65,12.65]
[1644682067585,8.15696092,95.733,95.651,2.62390296]
[1644682067884,37.62007675,95.736,95.651,2.62390296]
[1644682068084,5.224,95.739,95.651,2.62390296]
[1644682068690,5.224,95.739,95.652,20.88407907]
[1644682068885,0.56912739,95.74,95.652,20.88407907]
[1644682069085,43.99264106,95.738,95.66,15.6749]
[1644682069289,43.99264106,95.738,95.67,12.65]
[1644682069513,5.224,95.737,95.67,12.65]
[1644682069714,13.374,95.737,95.632,36.99485196]
[1644682069913,13.374,95.737,95.64,12.65]
[1644682070113,3.14957333,95.736,95.64,12.65]
[1644682070312,15.6856,95.73,95.64,12.65]
[1644682070511,8.37357333,95.729,95.641,30.12815242]
[1644682070713,5.224,95.729,95.64,12.65]
[1644682070911,5.224,95.735,95.64,12.65]
[1644682071113,2.93296092,95.758,95.641,26.35807907]
[1644682071315,5.224,95.734,95.641,21.13407907]
[1644682071512,4.12069,95.737,95.641,21.13407907]
[1644682071513,4.724,95.736,95.642,27.43696796]
[1644682071814,8.84469,95.736,95.643,22.21296796]
[1644682072013,4.12069,95.736,95.644,106.0]
[1644682072315,4.12069,95.736,95.645,27.43696796]
[1644682072512,4.12069,95.736,95.645,22.21296796]
[1644682072715,5.224,95.737,95.646,22.21296796]
[1644682072912,5.224,95.737,95.66,12.65]
[1644682073112,5.224,95.766,95.66,12.65]
[1644682073312,5.224,95.768,95.661,22.21296796]
[1644682073512,5.224,95.772,95.661,49.05374085]
[1644682073713,5.224,95.774,95.662,16.11077289]
[1644682073917,5.224,95.774,95.663,106.0]
[1644682074113,46.11747224,95.756,95.664,2.18834904]
[1644682074315,34.23607471,95.741,95.68,15.6728]
[1644682074516,34.23607471,95.741,95.69,12.65]
[1644682074714,5.224,95.772,95.7,12.65]
[1644682074913,4.724,95.754,95.7,12.65]
[1644682075115,0.49780342,95.697,95.665,23.54185685]
[1644682075315,0.49780342,95.697,95.67,12.65]
[1644682076713,0.49780342,95.697,95.64,12.65]
[1644682076914,12.12780342,95.697,95.64,12.65]
[1644682077114,5.226,95.696,95.64,12.65]
[1644682077314,45.33046863,95.696,95.64,12.65]
[1644682077715,52.69330342,95.725,95.641,0.25]
[1644682077914,52.69330342,95.725,95.64,12.65]
[1644682078814,39.72786581,95.724,95.64,12.65]
[1644682079014,5.224,95.723,95.64,12.65]
[1644682079718,15.6868,95.72,95.62,12.65]
[1644682080016,2.93296092,95.7,95.563,5.226]
[1644682080216,2.93296092,95.693,95.56,12.65]
[1644682080517,2.93296092,95.689,95.54,12.65]
[1644682080716,2.93296092,95.689,95.518,15.97860622]
[1644682080717,15.6959,95.67,95.55,12.65]
[1644682080917,45.58000179,95.669,95.56,12.65]
[1644682081116,50.81000179,95.669,95.57,12.65]
[1644682081419,50.81000179,95.669,95.58,12.65]
[1644682081616,50.81000179,95.669,95.562,5.45905457]
[1644682081617,50.81000179,95.669,95.59,12.65]
[1644682082216,50.81000179,95.669,95.591,0.25]
[1644682082420,50.81000179,95.669,95.59,12.65]
[1644682082617,61.38000179,95.669,95.534,5.228]
[1644682082819,61.38000179,95.669,95.56,12.65]
[1644682082820,2.93296092,95.666,95.56,12.65]
[1644682083018,5.229,95.665,95.54,12.65]
[1644682083416,15.6965,95.66,95.541,2.89407619]
[1644682083618,5.23,95.659,95.541,2.89407619]
[1644682083816,27.96234494,95.658,95.541,2.89407619]
[1644682084018,27.96234494,95.658,95.54,12.65]
[1644682084019,114.21634494,95.657,95.54,12.65]
[1644682084221,2.93296092,95.649,95.52,12.65]
[1644682084422,5.23,95.648,95.51,12.65]
[1644682084620,72.6337,95.647,95.51,12.65]
[1644682084822,2.93296092,95.641,95.51,12.65]
[1644682085020,15.7049,95.61,95.49,31.68250622]
[1644682085221,23.6323,95.609,95.475,2.62390296]
[1644682085421,5.48,95.601,95.459,5.232]
[1644682085619,11.151042,95.6,95.45,12.65]
[1644682085819,2.98608108,95.599,95.46,2.62390296]
[1644682086020,15.7108,95.58,95.461,5.232]
[1644682086218,47.8779305,95.579,95.471,24.74304633]
[1644682086424,53.1119305,95.579,95.471,24.74304633]
[1644682086622,53.1119305,95.579,95.472,2.62390296]
[1644682086818,53.1119305,95.579,95.473,0.25]
[1644682087022,53.1119305,95.579,95.474,5.234]
[1644682087219,53.1119305,95.579,95.474,2.62390296]
[1644682087419,53.1119305,95.579,95.475,2.62390296]
[1644682088323,53.1119305,95.579,95.462,2.62390296]
[1644682088522,60.3219305,95.579,95.45,12.65]
[1644682088726,15.7124,95.57,95.44,12.65]
[1644682088923,5.234,95.569,95.45,12.65]
[1644682089123,5.234,95.569,95.468,39.38157252]
[1644682089527,5.234,95.569,95.468,42.00547548]
[1644682089825,5.234,95.569,95.469,0.25]
[1644682090230,5.234,95.569,95.47,2.62390296]
[1644682090426,47.8779305,95.579,95.47,2.62390296]
[1644682090427,5.234,95.578,95.47,15.27390296]
[1644682090627,47.8779305,95.579,95.471,30.80513568]
[1644682090836,47.8779305,95.579,95.471,33.42903864]
[1644682091036,5.234,95.578,95.472,28.19503864]
[1644682091435,5.234,95.578,95.473,2.62390296]
[1644682092237,5.234,95.578,95.474,10.37231279]
[1644682092438,5.234,95.578,95.475,5.234]
[1644682092638,47.8779305,95.579,95.475,7.85790296]
[1644682092836,47.8779305,95.579,95.476,10.18453502]
[1644682093039,5.234,95.608,95.49,12.65]
[1644682093240,5.234,95.608,95.5,158.18]
[1644682093440,5.232,95.638,95.51,170.83]
[1644682093642,69.7874,95.646,95.51,170.83]
[1644682093643,75.0184,95.646,95.52,158.18]
[1644682093841,75.0184,95.646,95.53,158.18]
[1644682094039,42.56216547,95.645,95.531,21.60079814]
[1644682094241,42.56216547,95.645,95.532,5.23]
[1644682094643,42.56216547,95.645,95.533,106.0]
[1644682094840,5.23,95.644,95.55,15.6931]
[1644682095043,5.23,95.644,95.56,12.65]
[1644682095341,42.56216547,95.645,95.56,12.65]
[1644682095546,42.56216547,95.645,95.561,2.62390296]
[1644682095753,42.56216547,95.645,95.562,5.229]
[1644682095955,42.56216547,95.645,95.57,15.6909]
[1644682096154,42.56216547,95.645,95.58,12.65]
[1644682096355,5.23,95.669,95.58,12.65]
[1644682096557,5.228,95.685,95.581,106.0]
[1644682096754,5.228,95.685,95.581,113.85190296]
[1644682096955,5.228,95.685,95.582,2.62390296]
[1644682097159,2.97532405,95.684,95.582,2.62390296]
[1644682097357,5.228,95.683,95.58,12.65]
[1644682098056,36.98254654,95.682,95.581,45.05064354]
[1644682098256,42.21054654,95.682,95.581,45.05064354]
[1644682098456,42.21054654,95.682,95.59,12.65]
[1644682098855,42.21054654,95.682,95.591,2.62390296]
[1644682099256,42.21054654,95.682,95.59,12.65]
[1644682099659,42.21054654,95.682,95.59,15.27390296]
[1644682100462,42.21054654,95.682,95.59,30.96190296]
[1644682100861,42.21054654,95.682,95.591,0.25]
[1644682101069,36.98254654,95.682,95.591,0.25]
[1644682101363,36.98254654,95.682,95.592,2.62390296]
[1644682101566,36.98254654,95.682,95.6,15.6866]
[1644682101762,5.227,95.708,95.61,12.65]
[1644682101963,242.96671851,95.905,95.611,111.226]
[1644682101964,2.93296092,95.731,95.611,111.226]
[1644682102166,5.226,95.725,95.611,108.62390296]
[1644682102369,2.93296092,95.739,95.612,5.224]
[1644682102670,5.224,95.745,95.63,15.681]
[1644682102863,2.96600128,95.738,95.64,12.65]
[1644682103063,44.02841483,95.744,95.64,12.65]
[1644682103263,44.02841483,95.744,95.641,7.84790296]
[1644682103464,2.96765691,95.743,95.641,7.84790296]
[1644682103662,44.02841483,95.744,95.642,2.62390296]
[1644682104164,5.224,95.769,95.65,15.6779]
[1644682104363,5.224,95.767,95.66,12.65]
[1644682104562,2.96715075,95.766,95.66,12.65]
[1644682104768,5.223,95.767,95.661,2.62390296]
[1644682104961,5.223,95.765,95.661,2.62390296]
[1644682105162,70.3104,95.805,95.661,2.62390296]
[1644682105163,43.19150161,95.787,95.69,15.6716]
[1644682105363,43.19150161,95.787,95.7,12.65]
[1644682105565,5.222,95.786,95.701,38.04839797]
[1644682105762,23.4245,95.805,95.701,40.67230093]
[1644682105963,2.96593595,95.804,95.701,40.67230093]
[1644682106167,8.18693595,95.819,95.702,21.09359314]
[1644682106364,5.221,95.819,95.702,21.09359314]
[1644682106564,39.23179875,95.818,95.703,2.62390296]
[1644682106766,5.221,95.817,95.71,15.6665]
[1644682106965,5.221,95.817,95.72,12.65]
[1644682107166,2.95562549,95.816,95.721,22.93397269]
[1644682107379,2.95562549,95.816,95.722,5.22]
[1644682107565,5.22,95.815,95.722,11.1]
[1644682107767,10.91118033,95.898,95.723,5.219]
[1644682107966,2.93826365,95.857,95.723,2.62390296]
[1644682108165,2.93826365,95.857,95.724,5.219]
[1644682108365,2.93826365,95.857,95.725,106.0]
[1644682108565,38.80010805,95.856,95.725,108.87390296]
[1644682108765,8.15726365,95.855,95.73,15.6633]
[1644682108965,2.93826365,95.854,95.74,12.65]
[1644682109165,0.48,95.842,95.741,38.04839797]
[1644682109367,20.76797413,95.739,95.7,12.65]
[1644682109565,20.76797413,95.739,95.69,12.65]
[1644682109970,5.223,95.738,95.621,5.223]
[1644682110167,5.223,95.738,95.62,12.65]
[1644682110367,44.97807945,95.737,95.622,48.04947317]
[1644682110566,5.224,95.736,95.622,48.04947317]
[1644682110767,7.84790296,95.736,95.623,2.62390296]
[1644682111175,5.224,95.736,95.623,2.62390296]
[1644682111371,20.76797413,95.739,95.623,2.62390296]
[1644682111372,20.76797413,95.739,95.624,5.224]
[1644682111771,20.76797413,95.739,95.623,17.27445211]
[1644682111971,5.224,95.738,95.625,14.67435507]
[1644682112172,35.35665857,95.737,95.622,45.42557021]
[1644682112372,5.224,95.736,95.622,45.42557021]
[1644682112773,5.224,95.736,95.623,2.62390296]
[1644682112972,5.224,95.736,95.624,5.224]
[1644682113172,35.35665857,95.737,95.63,15.6781]
[1644682113372,35.35665857,95.737,95.64,12.65]
[1644682113572,20.76797413,95.739,95.641,106.0]
[1644682113777,20.76797413,95.739,95.641,118.30045211]
[1644682113972,20.76797413,95.739,95.641,120.92435507]
[1644682114174,20.76797413,95.739,95.642,14.67435507]
[1644682114372,20.76797413,95.739,95.66,15.6737]
[1644682114575,3.9863567,95.739,95.67,170.83]
[1644682114774,3.9863567,95.739,95.68,158.18]
[1644682114973,3.9863567,95.739,95.69,12.65]
[1644682115176,481.06530678,95.853,95.691,51.0]
[1644682115373,15.6685,95.85,95.691,118.05045211]
[1644682115580,46.77286052,95.802,95.693,106.0]
[1644682115773,5.222,95.801,95.693,106.0]
[1644682116074,44.6397078,95.787,95.695,106.0]
[1644682116273,49.8617078,95.787,95.695,106.0]
[1644682116473,49.8617078,95.787,95.696,2.62390296]
[1644682116675,44.6397078,95.787,95.711,31.74743684]
[1644682117074,44.6397078,95.787,95.712,2.62390296]
[1644682117477,28.6592,95.848,95.712,108.62390296]
[1644682117877,28.6592,95.848,95.713,14.67435507]
[1644682118276,28.6592,95.848,95.714,2.62390296]
[1644682118474,42.08094804,95.819,95.715,5.221]
[1644682118674,28.6592,95.848,95.73,12.65]
[1644682118876,28.6592,95.848,95.731,106.0]
[1644682119076,23.4372,95.848,95.731,120.67363285]
[1644682119676,44.61510291,95.813,95.732,20.51668958]
[1644682119875,44.61510291,95.813,95.732,23.14059254]
[1644682120078,23.4372,95.848,95.733,14.67363285]
[1644682120278,5.221,95.847,95.733,14.67363285]
[1644682120475,5.221,95.847,95.734,108.62390296]
[1644682120878,5.221,95.847,95.734,106.0]
[1644682121979,45.13966692,95.794,95.734,106.0]
[1644682122178,5.221,95.847,95.735,2.62390296]
[1644682123181,5.221,95.847,95.73,12.65]
[1644682123382,48.55879239,95.787,95.73,12.65]
[1644682123980,48.55879239,95.787,95.691,5.221]
[1644682123981,59.28879239,95.787,95.691,5.221]
[1644682124183,106.0,95.786,95.691,5.221]
[1644682124381,5.222,95.785,95.691,5.221]
[1644682124781,5.222,95.785,95.679,3.00947509]
[1644682124980,15.6791,95.78,95.679,3.00947509]
[1644682125385,5.223,95.779,95.679,3.00947509]
[1644682125781,5.223,95.786,95.68,15.52390296]
[1644682126181,43.33779239,95.787,95.681,113.84590296]
[1644682126380,43.33779239,95.787,95.681,128.94072585]
[1644682126581,43.33779239,95.787,95.682,2.62390296]
[1644682126780,43.33779239,95.787,95.683,5.222]
[1644682126980,43.33779239,95.787,95.683,36.82929085]
[1644682127281,43.33779239,95.787,95.684,2.62390296]
[1644682127481,43.33779239,95.787,95.685,5.222]
[1644682127682,43.33779239,95.787,95.7,12.65]
[1644682127885,43.33779239,95.787,95.702,31.45218304]
[1644682128081,5.222,95.808,95.703,5.222]
[1644682128282,72.636,95.809,95.703,5.222]
[1644682128483,72.636,95.809,95.704,108.62390296]
[1644682128682,119.2066651,95.827,95.705,5.221]
[1644682128882,5.221,95.826,95.705,22.93972585]
[1644682129082,36.3951595,95.825,95.705,39.45219381]
[1644682129282,2.93616081,95.824,95.706,2.62390296]
[1644682129482,2.93616081,95.824,95.72,12.65]
[1644682129682,2.93616081,95.824,95.721,8.76221349]
[1644682129885,2.93616081,95.824,95.721,11.38611645]
[1644682130281,2.93616081,95.824,95.722,2.62390296]
[1644682130486,5.22,95.823,95.72,12.65]
[1644682130692,2.93616081,95.822,95.706,2.62390296]
[1644682130889,15.6724,95.82,95.706,2.62390296]
[1644682131087,5.221,95.819,95.678,2.62390296]
[1644682131291,0.48,95.812,95.661,5.221]
[1644682131486,0.48,95.812,95.678,36.11182764]
[1644682131688,44.5501494,95.81,95.678,36.11182764]
[1644682131888,4.36881037,95.806,95.678,36.11182764]
[1644682132085,5.222,95.805,95.678,36.11182764]
[1644682132285,2.93616081,95.804,95.66,12.65]
[1644682132488,5.222,95.803,95.661,0.25]
[1644682132691,2.93616081,95.802,95.661,0.25]
[1644682132888,15.6768,95.79,95.662,7.84590296]
[1644682133091,2.93616081,95.789,95.662,7.84590296]
[1644682133290,40.20854538,95.787,95.664,38.9141593]
[1644682133589,8.15916081,95.786,95.665,7.84690296]
[1644682133789,2.93616081,95.785,95.67,12.65]
[1644682133990,5.223,95.784,95.67,12.65]
[1644682134189,2.93616081,95.783,95.67,12.65]
[1644682134589,15.6778,95.78,95.67,12.65]
[1644682134789,106.0,95.779,95.67,12.65]
[1644682134987,8.15916081,95.778,95.67,12.65]